bitfinex/quotes_SOLUSD_20241118
["timestamp","ask_amount","ask_price","bid_price","bid_amount"]
[1731896523409,0.21916462,237.98,237.92,10.17194602]
[1731896523747,0.25098,237.97,237.9,20.68024602]
[1731896523915,24.027864,237.97,237.9,20.68024602]
[1731896524316,24.027864,237.97,237.9,10.17194602]
[1731896524830,34.29348464,237.96,237.86,10.17194602]
[1731896525034,34.29348464,237.96,237.84,10.17194602]
[1731896525035,24.12153862,237.91,237.84,10.17194602]
[1731896525248,24.12153862,237.91,237.8,26.8777]
[1731896525249,23.902374,237.89,237.81,4.2049]
[1731896525433,23.902374,237.89,237.84,10.17194602]
[1731896525820,0.12549,237.88,237.81,10.5125]
[1731896526145,0.12549,237.88,237.82,10.17194602]
[1731896526639,0.21916462,237.87,237.82,10.17194602]
[1731896526824,0.21916462,237.87,237.77,4.2056]
[1731896526825,0.12549,237.86,237.8,10.17194602]
[1731896527026,0.12549,237.87,237.84,10.17194602]
[1731896527432,0.25098,237.88,237.84,10.17194602]
[1731896527640,0.25098,237.88,237.83,10.17194602]
[1731896528541,23.776884,237.87,237.81,10.17194602]
[1731896529047,4.45478,237.88,237.8,4.205]
[1731896529048,23.902374,237.88,237.85,10.17194602]
[1731896529219,23.776884,237.88,237.85,10.17194602]
[1731896529520,23.776884,237.88,237.8,14.718]
[1731896529521,0.25098,237.92,237.87,10.17194602]
[1731896530140,0.12549,237.92,237.87,10.17194602]
[1731896530439,0.25098,237.94,237.87,10.17194602]
[1731896530619,0.09367462,237.94,237.87,10.17194602]
[1731896530935,22.0761,237.95,237.87,10.17194602]
[1731896531140,22.0761,237.95,237.87,24.88574602]
[1731896531338,22.0761,237.95,237.89,10.17194602]
[1731896531740,15.9195,237.95,237.89,10.17194602]
[1731896531945,10.17194602,237.98,237.91,10.17194602]
[1731896532250,30.29314602,238.0,237.91,10.17194602]
[1731896532439,14.37404602,237.98,237.91,10.17194602]
[1731896533029,30.29314602,238.0,237.91,14.37514602]
[1731896533438,24.12153862,237.99,237.91,14.37514602]
[1731896533639,23.776884,237.99,237.91,24.88324602]
[1731896533868,15.9195,238.05,237.97,10.17194602]
[1731896534024,15.9195,238.05,237.91,14.7113]
[1731896534025,15.9195,238.05,237.99,10.17194602]
[1731896534228,10.17194602,238.0,237.92,10.17194602]
[1731896534430,0.09367462,237.99,237.91,14.7113]
[1731896534721,4.29557462,237.99,237.91,14.7113]
[1731896535339,24.027864,237.98,237.91,10.5081]
[1731896536244,24.027864,237.95,237.86,20.68214602]
[1731896536445,24.027864,237.95,237.86,24.88624602]
[1731896536756,23.902374,237.93,237.86,24.88624602]
[1731896540226,0.12549,237.94,237.86,24.88624602]
[1731896541435,0.12549,237.94,237.88,10.17194602]
[1731896541747,16.32354602,238.03,237.92,10.17194602]
[1731896541943,6.1516,238.03,237.98,10.17194602]
[1731896542333,4.201,238.04,237.98,10.17194602]
[1731896543934,23.776884,238.03,237.98,10.17194602]
[1731896546547,23.776884,238.04,238.0,10.17194602]
[1731896548232,0.21916462,238.02,237.94,10.17194602]
[1731896548468,10.29743602,237.99,237.92,10.17194602]
[1731896548631,23.776884,237.98,237.92,10.17194602]
[1731896548837,23.776884,237.98,237.94,10.17194602]
[1731896550056,23.776884,237.98,237.94,14.37464602]
[1731896550250,23.276884,237.98,237.96,10.17194602]
[1731896551766,4.54595462,238.02,237.94,10.17194602]
[1731896552240,4.54595462,238.02,237.94,14.37454602]
[1731896552447,0.12549,238.0,237.94,14.37454602]
[1731896553963,23.902374,238.0,237.94,14.37454602]
[1731896554340,23.902374,238.0,237.89,10.5088]
[1731896554341,0.21916462,237.99,237.92,10.17194602]
[1731896554559,0.12549,237.98,237.92,10.17194602]
[1731896555435,23.902374,237.98,237.92,10.17194602]
[1731896555640,28.104474,237.98,237.9,10.17194602]
[1731896556037,0.12549,237.97,237.9,10.17194602]
[1731896556664,0.12549,237.97,237.9,14.37534602]
[1731896557354,0.12549,237.97,237.92,10.17194602]
[1731896559173,0.25098,237.98,237.92,14.37494602]
[1731896559354,23.776884,237.97,237.92,10.17194602]
[1731896559558,0.12549,237.96,237.92,10.17194602]
[1731896560040,10.17194602,238.03,237.94,10.17194602]
[1731896560246,0.09367462,238.02,237.94,10.17194602]
[1731896560550,10.17194602,237.97,237.88,24.88494602]
[1731896560955,0.09367462,237.96,237.88,24.88494602]
[1731896561152,24.027864,237.94,237.88,10.17194602]
[1731896561355,23.902374,237.92,237.86,14.37594602]
[1731896562359,23.902374,237.92,237.86,10.17194602]
[1731896562552,23.902374,237.92,237.88,10.17194602]
[1731896562767,23.902374,237.92,237.86,10.17194602]
[1731896564164,23.902374,237.92,237.88,10.17194602]
[1731896564772,23.902374,237.92,237.88,14.37564602]
[1731896566376,186.402374,237.92,237.88,14.37564602]
[1731896567360,162.5,237.99,237.91,20.0]
[1731896567681,162.5,238.02,237.97,10.17194602]
[1731896567971,172.67194602,238.01,237.88,14.7132]
[1731896568151,10.17194602,238.01,237.94,10.17194602]
[1731896568354,6.5271,238.03,237.94,10.17194602]
[1731896568355,162.5,238.0,237.94,10.17194602]
[1731896569281,162.5,238.0,237.94,14.37454602]
[1731896569455,23.902374,237.99,237.96,10.17194602]
[1731896569765,23.902374,237.99,237.94,14.37454602]
[1731896570154,0.12549,237.98,237.92,10.17194602]
[1731896570580,0.12549,237.98,237.9,10.17194602]
[1731896570878,0.09367462,237.97,237.9,10.17194602]
[1731896571069,0.09367462,237.95,237.88,10.17194602]
[1731896571267,0.12549,237.92,237.85,4.2041]
[1731896572155,0.12549,237.92,237.84,20.68284602]
[1731896572355,24.027864,237.9,237.84,20.68284602]
[1731896572654,186.527864,237.9,237.82,10.17194602]
[1731896572855,24.027864,237.88,237.82,10.17194602]
[1731896573464,28.231764,237.88,237.8,10.17194602]
[1731896574367,28.231764,237.88,237.8,14.37694602]
[1731896575382,24.027864,237.86,237.79,10.5132]
[1731896575554,23.902374,237.84,237.76,4.2058]
[1731896575760,23.902374,237.84,237.78,10.17194602]
[1731896575959,23.902374,237.84,237.8,10.17194602]
[1731896576161,186.402374,237.84,237.8,10.17194602]
[1731896576868,0.12549,237.83,237.78,10.17194602]
[1731896577269,186.402374,237.84,237.78,10.17194602]
[1731896580159,0.12549,237.83,237.78,10.17194602]
[1731896580363,186.402374,237.84,237.78,14.37734602]
[1731896581471,23.902374,237.84,237.78,14.37734602]
[1731896581867,23.902374,237.84,237.8,10.17194602]
[1731896582079,162.5,237.85,237.82,10.17194602]
[1731896582974,162.5,237.85,237.8,10.17194602]
[1731896583887,23.902374,237.84,237.8,10.17194602]
[1731896584489,186.402374,237.84,237.8,10.17194602]
[1731896584690,186.276884,237.84,237.82,10.17194602]
[1731896584873,23.776884,237.84,237.82,10.17194602]
[1731896585979,162.5,237.91,237.82,14.37674602]
[1731896586296,15.6596,237.95,237.9,10.17194602]
[1731896586501,162.5,237.98,237.93,10.17194602]
[1731896586667,162.5,237.98,237.95,10.17194602]
[1731896586869,162.5,237.97,237.95,10.17194602]
[1731896587096,162.5,237.97,237.93,10.17194602]
[1731896587395,172.67194602,237.97,237.89,10.17194602]
[1731896587602,162.5,237.96,237.82,14.7169]
[1731896587890,4.2032,237.91,237.85,10.17194602]
[1731896588065,4.2032,237.91,237.81,10.17194602]
[1731896588066,10.26562064,237.89,237.81,10.17194602]
[1731896588277,0.09367462,237.87,237.81,10.17194602]
[1731896589383,24.027864,237.85,237.81,10.17194602]
[1731896589578,162.5,237.84,237.81,10.17194602]
[1731896589767,23.902374,237.83,237.81,10.17194602]
[1731896589970,23.902374,237.83,237.79,10.17194602]
[1731896590801,23.776884,237.83,237.81,10.17194602]
[1731896591781,23.776884,237.83,237.81,14.37684602]
[1731896593393,162.5,237.88,237.81,24.88934602]
[1731896593601,162.5,237.94,237.87,10.17194602]
[1731896593805,162.5,237.93,237.87,10.17194602]
[1731896594280,162.5,237.93,237.89,10.17194602]
[1731896594481,162.5,237.93,237.87,10.17194602]
[1731896594698,162.5,237.93,237.81,14.7174]
[1731896594699,10.17194602,237.91,237.83,10.17194602]
[1731896595077,24.027864,237.9,237.83,10.17194602]
[1731896595277,28.231264,237.9,237.83,10.17194602]
[1731896595574,28.231264,237.9,237.81,24.88944602]
[1731896595773,24.027864,237.88,237.81,24.88944602]
[1731896596583,28.231664,237.88,237.81,24.88944602]
[1731896596785,38.40361002,237.88,237.81,20.68444602]
[1731896597180,28.231664,237.88,237.81,20.68444602]
[1731896597785,38.40361002,237.88,237.81,10.5125]
[1731896599079,0.09367462,237.87,237.79,14.37724602]
[1731896599285,0.25098,237.85,237.79,14.37724602]
[1731896599599,6.77289557,237.94,237.79,14.37724602]
[1731896599600,162.5,237.84,237.83,10.17194602]
[1731896601075,186.402374,237.84,237.83,10.17194602]
[1731896601498,186.402374,237.84,237.81,10.17194602]
[1731896601801,23.776884,237.83,237.81,10.17194602]
[1731896603302,23.776884,237.83,237.82,4.2048]
[1731896604782,162.5,237.95,237.83,20.0]
[1731896604977,16.66494602,237.96,237.88,10.17194602]
[1731896604978,162.5,237.94,237.88,10.17194602]
[1731896605181,162.5,237.93,237.88,10.17194602]
[1731896605389,162.5,237.93,237.84,10.17194602]
[1731896605390,10.26562064,237.92,237.84,10.17194602]
[1731896605591,10.26562064,237.92,237.82,14.7169]
[1731896605780,166.7033,237.91,237.82,24.88884602]
[1731896606096,24.027864,237.9,237.82,24.88884602]
[1731896606803,24.027864,237.9,237.84,10.17194602]
[1731896606978,24.027864,237.9,237.84,14.37634602]
[1731896607675,23.776884,237.9,237.86,10.17194602]
[1731896607881,162.5,237.91,237.86,10.17194602]
[1731896608697,162.5,237.91,237.88,10.17194602]
[1731896609001,166.7025,237.95,237.88,10.17194602]
[1731896609201,24.027864,237.94,237.88,10.17194602]
[1731896609418,24.027864,237.94,237.86,10.17194602]
[1731896609419,34.19981002,237.94,237.86,10.17194602]
[1731896610512,162.5,237.95,237.9,10.17194602]
[1731896610684,162.5,237.96,237.92,10.17194602]
[1731896610891,166.7019,237.99,237.92,10.17194602]
[1731896613209,24.027864,237.98,237.92,10.17194602]
[1731896614118,28.229964,237.98,237.92,10.17194602]
[1731896614290,162.5,237.97,237.92,10.17194602]
[1731896614489,23.902374,237.96,237.92,10.17194602]
[1731896615410,23.902374,237.96,237.9,10.17194602]
[1731896615713,0.12549,237.95,237.88,10.17194602]
[1731896616103,23.902374,237.96,237.9,10.17194602]
[1731896616623,0.12549,237.95,237.88,20.68144602]
[1731896617100,38.27672002,237.96,237.88,20.68144602]
[1731896617101,38.27672002,237.96,237.88,10.17194602]
[1731896617294,162.5,237.95,237.88,10.17194602]
[1731896617487,34.07432002,237.94,237.86,10.17194602]
[1731896617710,24.027864,237.92,237.84,24.88764602]
[1731896617918,23.902374,237.92,237.84,24.88764602]
[1731896618131,23.902374,237.92,237.86,10.17194602]
[1731896618417,28.105474,237.92,237.86,10.17194602]
[1731896618796,28.105474,237.92,237.86,14.37604602]
[1731896619305,162.5,237.93,237.88,10.17194602]
[1731896619616,10.17194602,237.96,237.88,10.17194602]
[1731896620598,14.37434602,237.96,237.88,14.37554602]
[1731896620792,24.027864,237.95,237.88,14.37554602]
[1731896621110,23.902374,237.96,237.9,10.17194602]
[1731896621293,162.5,237.97,237.9,10.17194602]
[1731896622012,162.5,237.97,237.94,10.17194602]
[1731896622320,162.5,238.01,237.94,10.17194602]
[1731896622512,162.5,238.01,237.96,10.17194602]
[1731896622698,162.5,238.01,237.97,4.2022]
[1731896623316,162.5,238.01,237.96,10.17194602]
[1731896623703,23.776884,238.0,237.96,10.17194602]
[1731896624498,0.12549,237.99,237.94,10.17194602]
[1731896624724,0.12549,237.99,237.94,14.37454602]
[1731896629704,0.12549,237.97,237.9,14.7115]
[1731896629905,0.12549,237.97,237.9,24.88344602]
[1731896630902,14.37424602,237.96,237.88,14.37564602]
[1731896631104,0.12549,237.94,237.88,14.37564602]
[1731896631617,0.12549,237.94,237.9,10.17194602]
[1731896632000,0.12549,237.95,237.88,24.88514602]
[1731896635227,0.25098,237.95,237.88,10.17194602]
[1731896635528,0.25098,237.95,237.83,15.5015]
[1731896635529,23.902374,237.93,237.86,14.37594602]
[1731896637137,28.105374,237.93,237.86,14.37594602]
[1731896640309,28.105374,237.93,237.87,6.51324908]
[1731896641337,23.902374,237.9,237.84,10.5112]
[1731896641510,23.776884,237.9,237.86,6.51324908]
[1731896641840,23.776884,237.92,237.86,6.51324908]
[1731896642429,23.776884,237.92,237.86,10.71734908]
[1731896642813,23.776884,237.92,237.88,6.51324908]
[1731896643135,23.776884,237.94,237.86,21.22764908]
[1731896643331,6.63873908,237.93,237.86,17.02354908]
[1731896643512,23.776884,237.92,237.86,17.02354908]
[1731896644214,0.12549,237.91,237.84,6.51324908]
[1731896644750,4.32879,237.91,237.84,10.71764908]
[1731896644911,23.776884,237.9,237.84,10.71764908]
[1731896645116,6.51324908,237.93,237.84,10.71764908]
[1731896645117,23.776884,237.92,237.86,6.51324908]
[1731896645951,23.776884,237.92,237.84,14.7156]
[1731896645952,15.7312,237.99,237.88,6.51324908]
[1731896646243,6.51324908,237.95,237.87,6.51324908]
[1731896646718,10.71594908,237.95,237.87,10.71714908]
[1731896647947,23.776884,237.94,237.87,10.71714908]
[1731896648514,27.979584,237.94,237.87,10.71714908]
[1731896648741,23.776884,237.92,237.84,10.5112]
[1731896649038,23.776884,237.9,237.84,10.5112]
[1731896650047,27.980284,237.9,237.83,6.51324908]
[1731896651039,0.12549,237.89,237.8,4.205]
[1731896651244,27.980284,237.9,237.83,6.51324908]
[1731896652029,27.980284,237.9,237.83,10.71784908]
[1731896653124,27.980284,237.9,237.83,6.51324908]
[1731896653437,23.776884,237.88,237.81,10.71814908]
[1731896653847,23.776884,237.88,237.83,6.51324908]
[1731896654354,186.276884,237.88,237.83,6.51324908]
[1731896658640,186.276884,237.88,237.81,10.5125]
[1731896658641,162.5,237.88,237.85,6.51324908]
[1731896658851,162.5,237.88,237.87,6.51324908]
[1731896659444,162.5,237.93,237.87,6.51324908]
[1731896659943,30.41562308,237.92,237.85,6.51324908]
[1731896660831,30.41562308,237.92,237.82,14.7169]
[1731896660832,23.776884,237.92,237.87,6.51324908]
[1731896661024,162.5,237.93,237.89,6.51324908]
[1731896661227,162.5,237.94,237.89,6.51324908]
[1731896662360,23.776884,237.93,237.87,4.2039]
[1731896662849,23.776884,237.93,237.89,6.51324908]
[1731896664528,162.5,237.96,237.91,6.51324908]
[1731896664935,19.933,237.99,237.89,14.7125]
[1731896664936,162.5,237.98,237.93,6.51324908]
[1731896665151,162.5,238.0,237.95,6.51324908]
[1731896666043,166.7017,238.0,237.95,6.51324908]
[1731896666434,23.776884,237.99,237.95,6.51324908]
[1731896668446,186.276884,237.99,237.95,6.51324908]
[1731896671361,190.478784,237.99,237.93,6.51324908]
[1731896674147,190.478784,237.99,237.9,10.5086]
[1731896674344,0.09367462,237.97,237.87,15.0282]
[1731896674537,23.776884,237.94,237.87,4.2038]
[1731896674750,23.776884,237.94,237.87,10.71704908]
[1731896676245,0.12549,237.98,237.91,6.51324908]
[1731896676447,4.2018,238.0,237.93,6.51324908]
[1731896677056,166.7019,237.99,237.93,6.51324908]
[1731896677656,23.776884,237.98,237.93,6.51324908]
[1731896677840,23.776884,237.98,237.91,6.51324908]
[1731896678042,23.776884,237.98,237.93,6.51324908]
[1731896679071,27.978884,237.98,237.93,6.51324908]
[1731896679654,23.776884,237.98,237.93,6.51324908]
[1731896679885,23.776884,237.98,237.93,10.71604908]
[1731896680347,23.776884,237.98,237.93,6.51324908]
[1731896682851,27.978984,237.98,237.91,6.51324908]
[1731896683057,0.12549,237.97,237.89,6.51324908]
[1731896683561,23.776884,237.95,237.89,6.51324908]
[1731896684553,23.776884,237.95,237.89,10.71664908]
[1731896686482,186.276884,237.95,237.89,10.71664908]
[1731896687569,186.276884,237.95,237.89,21.22564908]
[1731896688179,186.276884,237.95,237.91,6.51324908]
[1731896688382,162.5,237.95,237.93,6.51324908]
[1731896689571,166.7017,238.0,237.93,10.71604908]
[1731896689963,23.776884,237.99,237.93,10.71604908]
[1731896692586,23.776884,237.97,237.91,10.71634908]
[1731896692961,23.776884,237.97,237.91,6.51324908]
[1731896693361,0.12549,237.96,237.91,6.51324908]
[1731896695384,23.776884,237.97,237.92,4.203]
[1731896695585,23.776884,237.95,237.92,4.203]
[1731896698163,23.776884,237.95,237.91,6.51324908]
[1731896698559,186.276884,237.95,237.91,6.51324908]
[1731896699064,186.276884,237.95,237.91,10.71644908]
[1731896699270,162.5,237.95,237.93,6.51324908]
[1731896701562,162.5,238.0,237.94,4.2027]
[1731896701784,23.776884,237.99,237.94,4.2027]
[1731896701963,0.12549,237.98,237.91,21.22444908]
[1731896702160,6.51324908,237.97,237.91,14.7112]
[1731896702690,23.776884,237.96,237.91,10.5081]
[1731896702997,23.902374,237.98,237.91,10.5081]
[1731896703172,0.12549,237.96,237.88,10.71684908]
[1731896703470,23.776884,237.94,237.88,10.71684908]
[1731896703667,0.25098,237.93,237.86,10.51]
[1731896703864,23.776884,237.91,237.86,14.714]
[1731896704183,23.776884,237.89,237.86,14.714]
[1731896704873,23.776884,237.89,237.86,10.51]
[1731896706788,23.776884,237.89,237.86,14.7141]
[1731896706972,23.776884,237.89,237.79,34.7187]
[1731896707287,162.5,237.88,237.83,6.51324908]
[1731896707466,23.776884,237.87,237.83,6.51324908]
[1731896708891,23.776884,237.87,237.83,4.2046]
[1731896709681,27.980884,237.87,237.79,34.7186]
[1731896709997,27.980884,237.87,237.79,41.23184908]
[1731896710197,23.776884,237.87,237.79,41.23184908]
[1731896710373,23.776884,237.87,237.81,6.51324908]
[1731896710691,23.776884,237.85,237.81,6.51324908]
[1731896711193,162.5,237.86,237.83,6.51324908]
[1731896711496,186.276884,237.86,237.85,6.51324908]
[1731896711785,23.776884,237.86,237.85,6.51324908]
[1731896711989,162.5,237.91,237.85,6.51324908]
[1731896712299,162.5,237.9,237.87,6.51324908]
[1731896712669,162.5,237.93,237.89,6.51324908]
[1731896713179,162.5,237.93,237.89,10.71674908]
[1731896714691,23.776884,237.92,237.89,10.71674908]
[1731896715781,23.776884,237.92,237.89,21.22574908]
[1731896715983,23.776884,237.96,237.89,21.22574908]
[1731896716188,23.776884,237.97,237.91,6.51324908]
[1731896716382,162.5,237.98,237.91,6.51324908]
[1731896716690,162.5,237.97,237.91,6.51324908]
[1731896717076,162.5,237.97,237.92,4.203]
[1731896717434,173.21554908,237.97,237.89,17.02224908]
[1731896717570,23.902374,237.96,237.89,14.7126]
[1731896718818,23.776884,237.93,237.87,4.2039]
[1731896719396,0.12549,237.9,237.84,14.7154]
[1731896719596,23.776884,237.88,237.84,14.7154]
[1731896720196,23.776884,237.88,237.84,10.5109]
[1731896720397,30.29013308,237.88,237.81,4.2049]
[1731896720602,162.5,237.87,237.81,4.2049]
[1731896720776,23.776884,237.86,237.81,4.2049]
[1731896721614,23.776884,237.86,237.8,10.513]
[1731896722315,23.776884,237.86,237.8,14.7182]
[1731896724585,23.776884,237.86,237.81,6.51324908]
[1731896725609,23.776884,237.84,237.79,6.51324908]
[1731896725785,23.776884,237.84,237.77,20.0]
[1731896725786,23.776884,237.82,237.77,6.51324908]
[1731896726884,23.776884,237.82,237.77,10.71874908]
[1731896727505,30.29013308,237.8,237.74,4.2061]
[1731896728211,162.75098,237.81,237.71,10.5166]
[1731896728212,0.12549,237.77,237.71,10.5166]
[1731896728409,192.91562308,237.76,237.71,10.5166]
[1731896728788,192.91562308,237.76,237.68,4.2072]
[1731896729013,193.0092977,237.76,237.68,4.2072]
[1731896729309,193.0092977,237.76,237.67,6.51324908]
[1731896729310,30.6347877,237.76,237.67,6.51324908]
[1731896729507,30.6347877,237.76,237.67,10.72064908]
[1731896731711,30.54111308,237.76,237.69,4.207]
[1731896731913,4.2046,237.83,237.71,6.51324908]
[1731896732108,6.51324908,237.8,237.71,6.51324908]
[1731896732437,6.51324908,237.8,237.74,4.2061]
[1731896733597,23.776884,237.79,237.74,4.2061]
[1731896733897,6.51324908,237.8,237.74,4.2061]
[1731896734241,0.12549,237.79,237.74,4.2061]
[1731896734529,10.18978679,237.76,237.7,14.724]
[1731896735028,34.09216079,237.76,237.7,14.724]
[1731896735513,23.902374,237.76,237.7,24.91378679]
[1731896735715,23.776884,237.76,237.72,14.39618679]
[1731896736395,23.776884,237.76,237.72,4.2064]
[1731896736617,23.776884,237.76,237.7,24.91378679]
[1731896738522,23.776884,237.76,237.71,4.2067]
[1731896740025,23.776884,237.76,237.7,20.70688679]
[1731896740323,23.902374,237.76,237.7,10.5171]
[1731896741218,34.09216079,237.76,237.7,10.5171]
[1731896742024,23.902374,237.76,237.7,20.70688679]
[1731896742433,23.902374,237.76,237.7,24.91378679]
[1731896743555,23.776884,237.76,237.72,4.2065]
[1731896743720,23.776884,237.76,237.7,24.91368679]
[1731896744237,34.09216079,237.76,237.7,14.7239]
[1731896745622,23.776884,237.76,237.71,4.2067]
[1731896748031,10.18978679,237.81,237.75,10.9823542]
[1731896748564,10.18978679,237.81,237.75,15.1883542]
[1731896748841,10.18978679,237.81,237.75,10.9823542]
[1731896749460,23.776884,237.8,237.75,10.9823542]
[1731896749644,23.776884,237.8,237.75,15.1883542]
[1731896750145,10.18978679,237.85,237.76,10.18978679]
[1731896750929,4.2041,237.86,237.78,10.18978679]
[1731896751128,10.18978679,237.87,237.78,10.18978679]
[1731896751342,25.2,237.89,237.8,10.18978679]
[1731896751343,10.18978679,237.89,237.8,10.18978679]
[1731896751523,10.18978679,237.91,237.82,10.18978679]
[1731896752032,14.39308679,237.91,237.83,4.2046]
[1731896752554,10.18978679,237.91,237.84,10.18978679]
[1731896753550,23.776884,237.9,237.84,10.18978679]
[1731896753721,10.18978679,237.93,237.84,10.18978679]
[1731896754145,10.18978679,237.93,237.85,14.7151]
[1731896754530,14.39268679,237.93,237.85,14.7151]
[1731896754926,10.18978679,237.91,237.85,14.7151]
[1731896755443,23.776884,237.9,237.85,14.7151]
[1731896755749,186.276884,237.9,237.85,14.7151]
[1731896756440,186.276884,237.9,237.85,10.5108]
[1731896758653,23.776884,237.9,237.85,10.5108]
[1731896761640,186.276884,237.9,237.85,10.5108]
[1731896763433,23.776884,237.87,237.85,10.5108]
[1731896763627,23.776884,237.87,237.81,15.8633]
[1731896763827,23.776884,237.87,237.75,21.4975542]
[1731896763828,23.776884,237.81,237.76,4.2059]
[1731896764236,30.29185353,237.83,237.76,4.2059]
[1731896764858,30.29185353,237.83,237.76,14.7207]
[1731896765335,23.776884,237.8,237.76,14.7207]
[1731896766057,23.776884,237.78,237.76,14.7207]
[1731896768155,162.5,237.79,237.77,6.51496953]
[1731896768658,162.5,237.86,237.76,35.7503]
[1731896768846,162.5,237.85,237.78,6.51496953]
[1731896769761,23.776884,237.84,237.78,6.51496953]
[1731896770062,6.51496953,237.81,237.76,14.7207]
[1731896770258,162.5,237.81,237.76,14.7207]
[1731896772263,23.776884,237.8,237.76,14.7207]
[1731896773547,186.276884,237.8,237.76,14.7207]
[1731896773754,186.276884,237.8,237.76,10.5148]
[1731896774369,186.276884,237.8,237.75,0.4671542]
[1731896775966,0.12549,237.79,237.75,0.4671542]
[1731896776170,23.776884,237.78,237.75,0.4671542]
[1731896776548,6.64045953,237.77,237.75,0.4671542]
[1731896776744,23.776884,237.76,237.75,0.4671542]
[1731896778563,24.027864,237.76,237.75,0.4671542]
[1731896779351,30.54283353,237.76,237.75,0.4671542]
[1731896782774,34.58951148,237.76,237.75,0.4671542]
[1731896784179,56.20001148,237.76,237.75,0.4671542]
[1731896785483,81.40001148,237.76,237.75,0.4671542]
[1731896786781,24.12153862,237.72,237.66,10.5192]
[1731896786994,30.41734353,237.7,237.66,10.5192]
[1731896787287,30.41734353,237.7,237.63,19.8832]
[1731896787476,0.12549,237.69,237.61,17.0334]
[1731896787666,23.776884,237.67,237.61,14.7295]
[1731896791663,23.776884,237.65,237.61,14.7295]
[1731896793190,23.776884,237.65,237.61,10.5211]
[1731896793395,23.776884,237.65,237.61,14.7296]
[1731896794562,23.776884,237.63,237.61,10.5211]
[1731896794882,185.8097298,237.63,237.61,10.5211]
[1731896796181,185.8097298,237.63,237.59,4.2089]
[1731896796368,192.32469933,237.63,237.59,4.2089]
[1731896796989,192.32469933,237.63,237.56,14.7329]
[1731896797290,23.776884,237.61,237.56,14.7329]
[1731896797588,23.776884,237.59,237.56,14.7329]
[1731896799385,23.776884,237.59,237.56,10.5235]
[1731896800594,23.776884,237.57,237.56,10.5235]
[1731896803898,162.0328458,237.64,237.56,17.03846953]
[1731896804196,162.0328458,237.63,237.6,6.51496953]
[1731896804796,162.0328458,237.63,237.59,6.51496953]
[1731896805474,23.776884,237.62,237.59,6.51496953]
[1731896805790,23.776884,237.62,237.6,4.2087]
[1731896808380,23.776884,237.62,237.58,14.7318]
[1731896809470,23.776884,237.62,237.58,6.51496953]
[1731896809795,23.776884,237.63,237.58,6.51496953]
[1731896810480,23.776884,237.63,237.56,6.51496953]
[1731896810686,23.776884,237.63,237.57,14.7324]
[1731896812581,23.776884,237.61,237.57,14.7324]
[1731896817093,162.0328458,237.62,237.6,6.51496953]
[1731896817293,162.0328458,237.7,237.6,6.51496953]
[1731896817488,162.0328458,237.69,237.57,35.8788]
[1731896817692,162.0328458,237.69,237.66,6.51496953]
[1731896817901,162.0328458,237.73,237.66,6.51496953]
[1731896818211,6.51496953,237.7,237.62,6.51496953]
[1731896818499,166.11377635,237.73,237.58,14.7318]
[1731896818500,6.51496953,237.68,237.58,14.7318]
[1731896818682,162.0328458,237.67,237.59,6.51496953]
[1731896819103,23.776884,237.66,237.61,6.51496953]
[1731896819705,23.776884,237.66,237.62,4.2083]
[1731896820205,23.776884,237.66,237.62,14.7292]
[1731896821083,23.776884,237.66,237.57,21.0464]
[1731896821283,30.29185353,237.66,237.58,4.2091]
[1731896821487,23.902374,237.63,237.57,10.5228]
[1731896821709,23.776884,237.61,237.57,10.5228]
[1731896821883,23.776884,237.59,237.57,10.5228]
[1731896822208,23.776884,237.59,237.53,6.51496953]
[1731896822209,23.776884,237.57,237.51,0.4671542]
[1731896822403,23.776884,237.54,237.51,0.4671542]
[1731896823483,23.776884,237.52,237.51,0.4671542]
[1731896828313,23.902374,237.52,237.51,0.4671542]
[1731896834393,27.84383533,237.59,237.51,0.4671542]
[1731896834599,83.07939434,237.74,237.55,6.51496953]
[1731896834600,6.51496953,237.64,237.55,6.51496953]
[1731896835706,6.51496953,237.64,237.56,14.733]
[1731896836005,6.51496953,237.62,237.56,14.733]
[1731896836188,23.776884,237.61,237.56,14.733]
[1731896838313,23.776884,237.61,237.56,10.5236]